[Event "Titled Tuesday Blitz January 25 2022"]
[White "Zakhartsov, Vladimir"]
[Black "Svane, Frederik"]
[WhiteFideId "4145097"]
[BlackFideId "12923044"]
[WhiteElo "2432"]
[BlackElo "2459"]
[Result "0-1"]
[Round "08"]
[TimeControl "180+1"]
[Date "2022.01.26"]
[WhiteClock "0:00:04"]
[BlackClock "0:00:11"]

1. d4 {[%clk 0:03:00]}  Nf6 {[%clk 0:03:00]} 2. c4 {[%clk 0:03:01]}  e6 {[%clk 0:03:01]} 3. Nf3 {[%clk 0:03:01]}  d5 {[%clk 0:02:59]} 4. g3 {[%clk 0:03:01]}  Bb4+ {[%clk 0:02:58]} 5. Bd2 {[%clk 0:02:59]}  Be7 {[%clk 0:02:59]} 6. Bg2 {[%clk 0:02:57]}  O-O {[%clk 0:02:59]} 7. O-O {[%clk 0:02:56]}  c6 {[%clk 0:03:00]} 8. Qc2 {[%clk 0:02:51]}  b6 {[%clk 0:03:00]} 9. b3 {[%clk 0:02:45]}  Nbd7 {[%clk 0:02:57]} 10. Bc3 {[%clk 0:02:42]}  Bb7 {[%clk 0:02:41]} 11. Nbd2 {[%clk 0:02:40]}  Rc8 {[%clk 0:02:41]} 12. Qb2 {[%clk 0:02:40]}  Re8 {[%clk 0:02:27]} 13. Rfd1 {[%clk 0:02:38]}  Bf8 {[%clk 0:02:27]} 14. e3 {[%clk 0:02:35]}  c5 {[%clk 0:02:21]} 15. Ne5 {[%clk 0:02:25]}  cxd4 {[%clk 0:02:14]} 16. Bxd4 {[%clk 0:02:20]}  Nc5 {[%clk 0:01:17]} 17. Ndf3 {[%clk 0:02:12]}  Qe7 {[%clk 0:01:07]} 18. Ng5 {[%clk 0:02:08]}  dxc4 {[%clk 0:01:03]} 19. bxc4 {[%clk 0:01:58]}  Bxg2 {[%clk 0:01:03]} 20. Kxg2 {[%clk 0:01:58]}  Qb7+ {[%clk 0:01:03]} 21. Kg1 {[%clk 0:01:54]}  Rc7 {[%clk 0:01:03]} 22. a4 {[%clk 0:01:50]}  h6 {[%clk 0:01:01]} 23. Ngf3 {[%clk 0:01:43]}  Nfe4 {[%clk 0:00:39]} 24. Qe2 {[%clk 0:01:30]}  Nb3 {[%clk 0:00:30]} 25. Rab1 {[%clk 0:01:28]}  Nxd4 {[%clk 0:00:31]} 26. exd4 {[%clk 0:01:29]}  Nc3 {[%clk 0:00:31]} 27. Qd3 {[%clk 0:01:17]}  Nxb1 {[%clk 0:00:31]} 28. Rxb1 {[%clk 0:01:17]}  Qa6 {[%clk 0:00:30]} 29. Qd1 {[%clk 0:00:54]}  f6 {[%clk 0:00:20]} 30. Nd3 {[%clk 0:00:44]}  Rxc4 {[%clk 0:00:20]} 31. Nf4 {[%clk 0:00:43]}  Qb7 {[%clk 0:00:20]} 32. Qb3 {[%clk 0:00:40]}  Qc6 {[%clk 0:00:18]} 33. Qd1 {[%clk 0:00:23]}  Rc8 {[%clk 0:00:13]} 34. Qe2 {[%clk 0:00:18]}  Rc1+ {[%clk 0:00:13]} 35. Rxc1 {[%clk 0:00:18]}  Qxc1+ {[%clk 0:00:13]} 36. Kg2 {[%clk 0:00:19]}  Qc6 {[%clk 0:00:14]} 37. h4 {[%clk 0:00:18]}  g5 {[%clk 0:00:13]} 38. d5 {[%clk 0:00:14]}  exd5 {[%clk 0:00:12]} 39. Ng6 {[%clk 0:00:13]}  Qe8 {[%clk 0:00:11]} 40. Qd3 {[%clk 0:00:12]}  Qe4 {[%clk 0:00:11]} 41. Qa6 {[%clk 0:00:09]}  Rc3 {[%clk 0:00:11]} 42. Ne5 {[%clk 0:00:04]}  fxe5 {[%clk 0:00:11]} 0-1


[Site "https://www.chess.com"]

[Event "Titled Tuesday Blitz January 25 2022"]
[White "Zarubitski, Viachaslau"]
[Black "Andreikin, Dmitry"]
[WhiteFideId "13509373"]
[BlackFideId "4158814"]
[WhiteElo "2805"]
[BlackElo "3010"]
[Result "0-1"]
[Round "08"]
[TimeControl "180+1"]
[Date "2022.01.26"]
[WhiteClock "0:00:02"]
[BlackClock "0:00:14"]

1. d4 {[%clk 0:03:00]}  d5 {[%clk 0:02:59]} 2. c4 {[%clk 0:03:01]}  c6 {[%clk 0:02:59]} 3. Nf3 {[%clk 0:03:00]}  Nf6 {[%clk 0:03:00]} 4. Nc3 {[%clk 0:03:01]}  a6 {[%clk 0:02:59]} 5. c5 {[%clk 0:03:01]}  Bf5 {[%clk 0:02:59]} 6. Qb3 {[%clk 0:02:58]}  Qc8 {[%clk 0:02:58]} 7. Bf4 {[%clk 0:02:50]}  g6 {[%clk 0:02:54]} 8. h3 {[%clk 0:02:48]}  Bg7 {[%clk 0:02:54]} 9. e3 {[%clk 0:02:47]}  O-O {[%clk 0:02:52]} 10. Be2 {[%clk 0:02:48]}  Nbd7 {[%clk 0:02:52]} 11. O-O {[%clk 0:02:47]}  Ne4 {[%clk 0:02:52]} 12. Rac1 {[%clk 0:02:42]}  Re8 {[%clk 0:02:48]} 13. Na4 {[%clk 0:02:41]}  f6 {[%clk 0:02:29]} 14. Bh2 {[%clk 0:02:39]}  e5 {[%clk 0:02:26]} 15. Rfd1 {[%clk 0:02:39]}  Be6 {[%clk 0:02:26]} 16. Nd2 {[%clk 0:02:37]}  Nxd2 {[%clk 0:02:14]} 17. Rxd2 {[%clk 0:02:38]}  e4 {[%clk 0:01:59]} 18. Bd6 {[%clk 0:02:33]}  f5 {[%clk 0:01:58]} 19. Qc3 {[%clk 0:02:26]}  Bf8 {[%clk 0:01:53]} 20. Bxf8 {[%clk 0:02:23]}  Rxf8 {[%clk 0:01:53]} 21. f4 {[%clk 0:02:15]}  exf3 {[%clk 0:01:48]} 22. Bxf3 {[%clk 0:02:16]}  Qc7 {[%clk 0:01:48]} 23. b4 {[%clk 0:02:11]}  Rae8 {[%clk 0:01:45]} 24. Nb2 {[%clk 0:02:09]}  f4 {[%clk 0:01:44]} 25. Re2 {[%clk 0:02:04]}  Nf6 {[%clk 0:01:35]} 26. exf4 {[%clk 0:02:00]}  Qxf4 {[%clk 0:01:36]} 27. Nd3 {[%clk 0:01:47]}  Qh4 {[%clk 0:01:33]} 28. Qe1 {[%clk 0:01:46]}  Qxd4+ {[%clk 0:01:33]} 29. Nf2 {[%clk 0:01:39]}  Bf5 {[%clk 0:01:33]} 30. Rd1 {[%clk 0:01:31]}  Rxe2 {[%clk 0:01:28]} 31. Bxe2 {[%clk 0:01:31]}  Qb2 {[%clk 0:01:20]} 32. Bd3 {[%clk 0:01:28]}  Re8 {[%clk 0:01:15]} 33. Qf1 {[%clk 0:01:26]}  Qxb4 {[%clk 0:01:10]} 34. Bxf5 {[%clk 0:01:26]}  gxf5 {[%clk 0:01:11]} 35. Nd3 {[%clk 0:01:26]}  Qe4 {[%clk 0:01:04]} 36. Kh2 {[%clk 0:01:19]}  Qe2 {[%clk 0:00:38]} 37. Qg1 {[%clk 0:00:51]}  Qe3 {[%clk 0:00:38]} 38. Qf1 {[%clk 0:00:50]}  Qe2 {[%clk 0:00:35]} 39. Qg1 {[%clk 0:00:50]}  Ne4 {[%clk 0:00:35]} 40. a4 {[%clk 0:00:27]}  a5 {[%clk 0:00:30]} 41. Nf4 {[%clk 0:00:23]}  Qb2 {[%clk 0:00:27]} 42. Nd3 {[%clk 0:00:22]}  Qg7 {[%clk 0:00:25]} 43. Qe3 {[%clk 0:00:18]}  Kh8 {[%clk 0:00:22]} 44. Qf4 {[%clk 0:00:18]}  Rg8 {[%clk 0:00:22]} 45. Rd2 {[%clk 0:00:16]}  Nxd2 {[%clk 0:00:21]} 46. Qxd2 {[%clk 0:00:15]}  Qg3+ {[%clk 0:00:19]} 47. Kh1 {[%clk 0:00:15]}  Re8 {[%clk 0:00:18]} 48. Qb2+ {[%clk 0:00:15]}  Kg8 {[%clk 0:00:18]} 49. Qd2 {[%clk 0:00:08]}  f4 {[%clk 0:00:17]} 50. Nf2 {[%clk 0:00:03]}  Qe3 {[%clk 0:00:16]} 51. Qb2 {[%clk 0:00:02]}  Qe1+ {[%clk 0:00:15]} 52. Kh2 {[%clk 0:00:03]}  Qe5 {[%clk 0:00:16]} 53. Qxb7 {[%clk 0:00:02]}  f3+ {[%clk 0:00:16]} 54. g3 {[%clk 0:00:02]}  Qe2 {[%clk 0:00:14]} 0-1


[Site "https://www.chess.com"]

[Event "Titled Tuesday Blitz January 25 2022"]
[White "Arabidze, Meri"]
[Black "Ogloblin, Nikolay"]
[WhiteFideId "13604040"]
[BlackFideId "4139658"]
[WhiteElo "2329"]
[BlackElo "2306"]
[Result "1-0"]
[Round "09"]
[TimeControl "180+1"]
[Date "2022.01.26"]
[WhiteClock "0:00:14"]
[BlackClock "0:00:29"]

1. Nf3 {[%clk 0:02:55]}  Nf6 {[%clk 0:02:58]} 2. d4 {[%clk 0:02:56]}  e6 {[%clk 0:02:57]} 3. c4 {[%clk 0:02:55]}  b6 {[%clk 0:02:57]} 4. g3 {[%clk 0:02:54]}  Bb4+ {[%clk 0:02:55]} 5. Nbd2 {[%clk 0:02:53]}  Bb7 {[%clk 0:02:55]} 6. Bg2 {[%clk 0:02:54]}  O-O {[%clk 0:02:55]} 7. O-O {[%clk 0:02:53]}  Bxd2 {[%clk 0:02:50]} 8. Bxd2 {[%clk 0:02:53]}  Be4 {[%clk 0:02:49]} 9. b4 {[%clk 0:02:49]}  d6 {[%clk 0:02:47]} 10. Qb3 {[%clk 0:02:46]}  Nbd7 {[%clk 0:02:46]} 11. a4 {[%clk 0:02:45]}  Qc8 {[%clk 0:02:44]} 12. a5 {[%clk 0:02:44]}  Qb7 {[%clk 0:02:41]} 13. Rfc1 {[%clk 0:02:40]}  a6 {[%clk 0:02:34]} 14. axb6 {[%clk 0:02:39]}  cxb6 {[%clk 0:02:33]} 15. Bh3 {[%clk 0:02:30]}  b5 {[%clk 0:02:10]} 16. c5 {[%clk 0:02:24]}  Bd5 {[%clk 0:02:08]} 17. Qa3 {[%clk 0:02:23]}  Ne4 {[%clk 0:02:06]} 18. Be1 {[%clk 0:02:23]}  dxc5 {[%clk 0:02:01]} 19. dxc5 {[%clk 0:02:21]}  f5 {[%clk 0:02:01]} 20. Nd4 {[%clk 0:02:13]}  Ng5 {[%clk 0:01:59]} 21. Bf1 {[%clk 0:02:09]}  Ne5 {[%clk 0:01:56]} 22. f4 {[%clk 0:02:00]}  Nc4 {[%clk 0:01:56]} 23. Rxc4 {[%clk 0:01:55]}  bxc4 {[%clk 0:01:54]} 24. fxg5 {[%clk 0:01:55]}  e5 {[%clk 0:01:54]} 25. Nc2 {[%clk 0:01:47]}  f4 {[%clk 0:01:53]} 26. Qc3 {[%clk 0:01:33]}  Qc7 {[%clk 0:01:47]} 27. Rd1 {[%clk 0:01:27]}  Rad8 {[%clk 0:01:40]} 28. e4 {[%clk 0:01:11]}  fxe3 {[%clk 0:01:26]} 29. Nxe3 {[%clk 0:01:07]}  Bf7 {[%clk 0:01:20]} 30. Rxd8 {[%clk 0:01:05]}  Rxd8 {[%clk 0:01:19]} 31. Bxc4 {[%clk 0:01:06]}  Rd4 {[%clk 0:01:15]} 32. Bxf7+ {[%clk 0:01:03]}  Qxf7 {[%clk 0:01:15]} 33. Bf2 {[%clk 0:01:03]}  Qf3 {[%clk 0:01:14]} 34. c6 {[%clk 0:00:57]}  Qf8 {[%clk 0:00:52]} 35. Kg2 {[%clk 0:00:41]}  Qc8 {[%clk 0:00:45]} 36. Qb3+ {[%clk 0:00:28]}  Kh8 {[%clk 0:00:43]} 37. b5 {[%clk 0:00:19]}  axb5 {[%clk 0:00:42]} 38. Qxb5 {[%clk 0:00:20]}  Qc7 {[%clk 0:00:30]} 39. Nd5 {[%clk 0:00:15]}  Qd6 {[%clk 0:00:29]} 40. Bxd4 {[%clk 0:00:14]}  exd4 {[%clk 0:00:29]} 41. c7 {[%clk 0:00:14]} 1-0


[Site "https://www.chess.com"]

[Event "Titled Tuesday Blitz January 25 2022"]
[White "Aukhatov, Roman"]
[Black "Yaniuk, Volodymyr"]
[WhiteFideId "44150768"]
[BlackFideId "14133083"]
[WhiteElo "2112"]
[BlackElo "2207"]
[Result "0-1"]
[Round "09"]
[TimeControl "180+1"]
[Date "2022.01.26"]
[WhiteClock "0:00:02"]
[BlackClock "0:01:43"]

1. Nf3 {[%clk 0:03:00]}  d5 {[%clk 0:02:52]} 2. d4 {[%clk 0:03:00]}  Nf6 {[%clk 0:02:50]} 3. c4 {[%clk 0:03:01]}  e6 {[%clk 0:02:50]} 4. g3 {[%clk 0:03:01]}  dxc4 {[%clk 0:02:51]} 5. Bg2 {[%clk 0:03:01]}  Bd7 {[%clk 0:02:51]} 6. O-O {[%clk 0:02:55]}  Bc6 {[%clk 0:02:51]} 7. Qc2 {[%clk 0:02:52]}  b5 {[%clk 0:02:51]} 8. a4 {[%clk 0:02:51]}  a6 {[%clk 0:02:51]} 9. Nc3 {[%clk 0:02:08]}  Nbd7 {[%clk 0:02:49]} 10. Rd1 {[%clk 0:02:05]}  Bb4 {[%clk 0:02:42]} 11. Na2 {[%clk 0:01:23]}  Be4 {[%clk 0:02:35]} 12. Qxe4 {[%clk 0:01:14]}  Nxe4 {[%clk 0:02:36]} 13. Nxb4 {[%clk 0:01:15]}  O-O {[%clk 0:02:17]} 14. Nc6 {[%clk 0:01:12]}  Qe8 {[%clk 0:02:16]} 15. Nfe5 {[%clk 0:01:11]}  Nxe5 {[%clk 0:02:13]} 16. Nxe5 {[%clk 0:01:06]}  Nd6 {[%clk 0:02:04]} 17. axb5 {[%clk 0:01:00]}  Qxb5 {[%clk 0:02:02]} 18. Bxa8 {[%clk 0:00:16]}  Rxa8 {[%clk 0:02:03]} 19. f3 {[%clk 0:00:15]}  h5 {[%clk 0:01:56]} 20. e4 {[%clk 0:00:06]}  f6 {[%clk 0:01:47]} 21. Ng6 {[%clk 0:00:03]}  Qb3 {[%clk 0:01:45]} 22. Kg2 {[%clk 0:00:02]}  Qxd1 {[%clk 0:01:44]} 23. Ne7+ {[%clk 0:00:02]}  Kf7 {[%clk 0:01:43]} 0-1


[Site "https://www.chess.com"]

[Event "Titled Tuesday Blitz January 25 2022"]
[White "Belyakov, Bogdan"]
[Black "Martin Carmona, Gaston Manuel"]
[WhiteFideId "24104795"]
[BlackFideId "22284567"]
[WhiteElo "2407"]
[BlackElo "2161"]
[Result "1-0"]
[Round "09"]
[TimeControl "180+1"]
[Date "2022.01.26"]
[WhiteClock "0:01:17"]
[BlackClock "0:00:18"]

1. e4 {[%clk 0:03:00]}  e6 {[%clk 0:03:00]} 2. d4 {[%clk 0:03:00]}  d5 {[%clk 0:03:01]} 3. Nc3 {[%clk 0:03:00]}  Bb4 {[%clk 0:03:00]} 4. a3 {[%clk 0:03:00]}  Bxc3+ {[%clk 0:02:48]} 5. bxc3 {[%clk 0:03:01]}  dxe4 {[%clk 0:02:49]} 6. f3 {[%clk 0:03:01]}  c5 {[%clk 0:02:45]} 7. Qd2 {[%clk 0:02:53]}  Nc6 {[%clk 0:01:57]} 8. Bb2 {[%clk 0:02:52]}  Nf6 {[%clk 0:01:56]} 9. O-O-O {[%clk 0:02:50]}  O-O {[%clk 0:01:53]} 10. Qg5 {[%clk 0:02:44]}  cxd4 {[%clk 0:01:50]} 11. cxd4 {[%clk 0:02:43]}  Qd5 {[%clk 0:01:50]} 12. h4 {[%clk 0:02:39]}  h6 {[%clk 0:01:40]} 13. Qg3 {[%clk 0:02:35]}  b5 {[%clk 0:01:35]} 14. Ne2 {[%clk 0:02:33]}  b4 {[%clk 0:01:20]} 15. Nf4 {[%clk 0:02:32]}  Qf5 {[%clk 0:01:19]} 16. d5 {[%clk 0:02:30]}  exd5 {[%clk 0:01:16]} 17. Nxd5 {[%clk 0:02:27]}  Nh5 {[%clk 0:01:03]} 18. Qc7 {[%clk 0:02:19]}  Bd7 {[%clk 0:00:30]} 19. fxe4 {[%clk 0:02:16]}  Qg4 {[%clk 0:00:27]} 20. Re1 {[%clk 0:01:53]}  Rac8 {[%clk 0:00:26]} 21. Qd6 {[%clk 0:01:51]}  bxa3 {[%clk 0:00:24]} 22. Qxa3 {[%clk 0:01:50]}  Ng3 {[%clk 0:00:17]} 23. Rh3 {[%clk 0:01:31]}  Nxf1 {[%clk 0:00:17]} 24. Rxf1 {[%clk 0:01:26]}  Qxe4 {[%clk 0:00:17]} 25. Rg3 {[%clk 0:01:18]}  g6 {[%clk 0:00:18]} 26. Nf6+ {[%clk 0:01:17]} 1-0


[Site "https://www.chess.com"]

[Event "Titled Tuesday Blitz January 25 2022"]
[White "Ben Artzi, Ido"]
[Black "Belov, Vladimir"]
[WhiteFideId "2810913"]
[BlackFideId "4132394"]
[WhiteElo "2244"]
[BlackElo "2501"]
[Result "1/2-1/2"]
[Round "09"]
[TimeControl "180+1"]
[Date "2022.01.26"]
[WhiteClock "0:00:04"]
[BlackClock "0:00:03"]

1. d4 {[%clk 0:03:00]}  Nf6 {[%clk 0:02:59]} 2. c4 {[%clk 0:03:00]}  g6 {[%clk 0:03:00]} 3. Nc3 {[%clk 0:03:00]}  d5 {[%clk 0:03:01]} 4. Nf3 {[%clk 0:02:59]}  Bg7 {[%clk 0:03:01]} 5. cxd5 {[%clk 0:02:59]}  Nxd5 {[%clk 0:03:01]} 6. Na4 {[%clk 0:03:00]}  Nf6 {[%clk 0:02:55]} 7. Nc3 {[%clk 0:02:59]}  Nd5 {[%clk 0:02:53]} 8. Na4 {[%clk 0:02:59]}  Nf6 {[%clk 0:02:49]} 9. Bf4 {[%clk 0:02:58]}  O-O {[%clk 0:02:47]} 10. e3 {[%clk 0:02:51]}  b6 {[%clk 0:02:23]} 11. Rc1 {[%clk 0:02:49]}  Nd5 {[%clk 0:02:23]} 12. Bg3 {[%clk 0:02:45]}  Bb7 {[%clk 0:02:02]} 13. Be2 {[%clk 0:02:45]}  Nd7 {[%clk 0:01:55]} 14. O-O {[%clk 0:02:44]}  c5 {[%clk 0:01:50]} 15. dxc5 {[%clk 0:02:44]}  Nxc5 {[%clk 0:01:49]} 16. Nxc5 {[%clk 0:02:43]}  bxc5 {[%clk 0:01:49]} 17. Rxc5 {[%clk 0:02:44]}  a6 {[%clk 0:01:30]} 18. Qb3 {[%clk 0:02:41]}  Qb6 {[%clk 0:01:27]} 19. Qxb6 {[%clk 0:02:32]}  Nxb6 {[%clk 0:01:28]} 20. Rc7 {[%clk 0:02:32]}  Bd5 {[%clk 0:01:26]} 21. b3 {[%clk 0:02:25]}  e6 {[%clk 0:01:21]} 22. Rfc1 {[%clk 0:02:19]}  a5 {[%clk 0:01:18]} 23. Bd6 {[%clk 0:02:17]}  Rfd8 {[%clk 0:01:10]} 24. Bc5 {[%clk 0:02:17]}  Rdb8 {[%clk 0:01:10]} 25. Ng5 {[%clk 0:02:03]}  a4 {[%clk 0:01:03]} 26. Bxb6 {[%clk 0:01:20]}  Rxb6 {[%clk 0:01:01]} 27. Rc8+ {[%clk 0:01:19]}  Rxc8 {[%clk 0:01:01]} 28. Rxc8+ {[%clk 0:01:20]}  Bf8 {[%clk 0:01:02]} 29. bxa4 {[%clk 0:01:20]}  Rb2 {[%clk 0:00:56]} 30. Bf1 {[%clk 0:01:03]}  Rxa2 {[%clk 0:00:53]} 31. Nxh7 {[%clk 0:00:20]}  Kxh7 {[%clk 0:00:54]} 32. Rxf8 {[%clk 0:00:20]}  Kg7 {[%clk 0:00:55]} 33. Rc8 {[%clk 0:00:14]}  Ra1 {[%clk 0:00:51]} 34. f3 {[%clk 0:00:12]}  Bb7 {[%clk 0:00:47]} 35. Rc2 {[%clk 0:00:05]}  Ba6 {[%clk 0:00:47]} 36. Rf2 {[%clk 0:00:05]}  Rxa4 {[%clk 0:00:47]} 37. Bxa6 {[%clk 0:00:04]}  Rxa6 {[%clk 0:00:48]} 38. e4 {[%clk 0:00:04]}  Ra1+ {[%clk 0:00:43]} 39. Rf1 {[%clk 0:00:05]}  Ra2 {[%clk 0:00:43]} 40. Rf2 {[%clk 0:00:04]}  Ra1+ {[%clk 0:00:44]} 41. Rf1 {[%clk 0:00:04]}  Ra2 {[%clk 0:00:44]} 42. h3 {[%clk 0:00:04]}  g5 {[%clk 0:00:44]} 43. Kh2 {[%clk 0:00:04]}  f5 {[%clk 0:00:44]} 44. Kg3 {[%clk 0:00:05]}  f4+ {[%clk 0:00:42]} 45. Kh2 {[%clk 0:00:06]}  Kf6 {[%clk 0:00:41]} 46. Rg1 {[%clk 0:00:05]}  Rb2 {[%clk 0:00:39]} 47. Rc1 {[%clk 0:00:05]}  Ra2 {[%clk 0:00:36]} 48. Rc5 {[%clk 0:00:05]}  Rb2 {[%clk 0:00:35]} 49. h4 {[%clk 0:00:05]}  gxh4 {[%clk 0:00:32]} 50. Rh5 {[%clk 0:00:05]}  e5 {[%clk 0:00:21]} 51. Rxh4 {[%clk 0:00:05]}  Ra2 {[%clk 0:00:19]} 52. Rg4 {[%clk 0:00:06]}  Rb2 {[%clk 0:00:18]} 53. Kh3 {[%clk 0:00:06]}  Ra2 {[%clk 0:00:17]} 54. Rg8 {[%clk 0:00:06]}  Rb2 {[%clk 0:00:15]} 55. Rf8+ {[%clk 0:00:06]}  Ke6 {[%clk 0:00:15]} 56. Rf5 {[%clk 0:00:06]}  Ra2 {[%clk 0:00:14]} 57. Rh5 {[%clk 0:00:07]}  Rb2 {[%clk 0:00:14]} 58. Rh6+ {[%clk 0:00:07]}  Kf7 {[%clk 0:00:13]} 59. Rd6 {[%clk 0:00:05]}  Ke7 {[%clk 0:00:12]} 60. Rd1 {[%clk 0:00:05]}  Kf6 {[%clk 0:00:12]} 61. Rg1 {[%clk 0:00:04]}  Kg5 {[%clk 0:00:12]} 62. Rd1 {[%clk 0:00:05]}  Rb8 {[%clk 0:00:11]} 63. Kh2 {[%clk 0:00:03]}  Rb6 {[%clk 0:00:11]} 64. Kg1 {[%clk 0:00:03]}  Kf6 {[%clk 0:00:11]} 65. Rd5 {[%clk 0:00:03]}  Rb1+ {[%clk 0:00:10]} 66. Kh2 {[%clk 0:00:03]}  Ke6 {[%clk 0:00:09]} 67. Kh3 {[%clk 0:00:03]}  Rh1+ {[%clk 0:00:08]} 68. Kg4 {[%clk 0:00:04]}  Rh2 {[%clk 0:00:08]} 69. Rd2 {[%clk 0:00:04]}  Rh8 {[%clk 0:00:08]} 70. Rc2 {[%clk 0:00:03]}  Rg8+ {[%clk 0:00:08]} 71. Kh3 {[%clk 0:00:03]}  Rh8+ {[%clk 0:00:09]} 72. Kg4 {[%clk 0:00:03]}  Rg8+ {[%clk 0:00:09]} 73. Kh5 {[%clk 0:00:04]}  Rh8+ {[%clk 0:00:09]} 74. Kg6 {[%clk 0:00:04]}  Rg8+ {[%clk 0:00:10]} 75. Kh6 {[%clk 0:00:05]}  Rh8+ {[%clk 0:00:06]} 76. Kg7 {[%clk 0:00:05]}  Rh2 {[%clk 0:00:06]} 77. Rd2 {[%clk 0:00:05]}  Rh1 {[%clk 0:00:05]} 78. Kg6 {[%clk 0:00:05]}  Rh8 {[%clk 0:00:05]} 79. Kg7 {[%clk 0:00:05]}  Rh2 {[%clk 0:00:05]} 80. Kg6 {[%clk 0:00:05]}  Rh8 {[%clk 0:00:05]} 81. Kg7 {[%clk 0:00:05]}  Rh2 {[%clk 0:00:06]} 82. Ra2 {[%clk 0:00:05]}  Rh5 {[%clk 0:00:05]} 83. Ra6+ {[%clk 0:00:05]}  Ke7 {[%clk 0:00:05]} 84. Rg6 {[%clk 0:00:05]}  Rh1 {[%clk 0:00:01]} 85. Rg5 {[%clk 0:00:05]}  Ke6 {[%clk 0:00:02]} 86. Kf8 {[%clk 0:00:05]}  Rh8+ {[%clk 0:00:01]} 87. Kg7 {[%clk 0:00:04]}  Ra8 {[%clk 0:00:02]} 88. Rg6+ {[%clk 0:00:04]}  Ke7 {[%clk 0:00:02]} 89. Rg5 {[%clk 0:00:04]}  Ke6 {[%clk 0:00:02]} 90. Rg6+ {[%clk 0:00:03]}  Ke7 {[%clk 0:00:02]} 91. Kh6 {[%clk 0:00:04]}  Ra2 {[%clk 0:00:02]} 92. Rg4 {[%clk 0:00:03]}  Kf6 {[%clk 0:00:02]} 93. Rg6+ {[%clk 0:00:03]}  Kf7 {[%clk 0:00:03]} 94. Rg5 {[%clk 0:00:04]}  Kf6 {[%clk 0:00:03]} 95. Rf5+ {[%clk 0:00:04]}  Ke6 {[%clk 0:00:03]} 96. Rg5 {[%clk 0:00:05]}  Kf6 {[%clk 0:00:04]} 97. Rg6+ {[%clk 0:00:05]}  Kf7 {[%clk 0:00:04]} 98. Kh5 {[%clk 0:00:05]}  Ra1 {[%clk 0:00:04]} 99. Rg4 {[%clk 0:00:04]}  Kf6 {[%clk 0:00:04]} 100. Rh4 {[%clk 0:00:04]}  Rg1 {[%clk 0:00:03]} 101. Rh2 {[%clk 0:00:04]} 1/2-1/2


[Site "https://www.chess.com"]

[Event "Titled Tuesday Blitz January 25 2022"]
[White "Bodnar, Nikolay"]
[Black "Visakh N R"]
[WhiteFideId "14106469"]
[BlackFideId "25012223"]
[WhiteElo "2296"]
[BlackElo "2454"]
[Result "0-1"]
[Round "09"]
[TimeControl "180+1"]
[Date "2022.01.26"]
[WhiteClock "0:01:31"]
[BlackClock "0:01:10"]

1. e4 {[%clk 0:03:00]}  e5 {[%clk 0:02:57]} 2. Nf3 {[%clk 0:03:00]}  Nc6 {[%clk 0:02:58]} 3. Bc4 {[%clk 0:03:01]}  Nf6 {[%clk 0:02:57]} 4. d3 {[%clk 0:03:01]}  Be7 {[%clk 0:02:57]} 5. c3 {[%clk 0:03:02]}  O-O {[%clk 0:02:57]} 6. O-O {[%clk 0:03:03]}  d6 {[%clk 0:02:56]} 7. a4 {[%clk 0:03:02]}  Be6 {[%clk 0:02:55]} 8. Bxe6 {[%clk 0:02:58]}  fxe6 {[%clk 0:02:55]} 9. b4 {[%clk 0:02:58]}  Qd7 {[%clk 0:02:52]} 10. Nbd2 {[%clk 0:02:53]}  a5 {[%clk 0:02:45]} 11. b5 {[%clk 0:02:53]}  Nd8 {[%clk 0:02:44]} 12. Nc4 {[%clk 0:02:53]}  b6 {[%clk 0:02:37]} 13. Re1 {[%clk 0:02:52]}  Qe8 {[%clk 0:02:30]} 14. Ba3 {[%clk 0:02:24]}  Nh5 {[%clk 0:02:10]} 15. Nfxe5 {[%clk 0:02:23]}  Nf4 {[%clk 0:02:00]} 16. Nf3 {[%clk 0:02:17]}  e5 {[%clk 0:01:54]} 17. g3 {[%clk 0:02:14]}  Nde6 {[%clk 0:01:52]} 18. gxf4 {[%clk 0:02:04]}  Nxf4 {[%clk 0:01:52]} 19. Kh1 {[%clk 0:02:04]}  Nh3 {[%clk 0:01:40]} 20. Qe2 {[%clk 0:02:01]}  Qh5 {[%clk 0:01:30]} 21. Ncd2 {[%clk 0:01:51]}  Bg5 {[%clk 0:01:18]} 22. Nxg5 {[%clk 0:01:34]}  Nxf2+ {[%clk 0:01:17]} 23. Kg2 {[%clk 0:01:35]}  Qxg5+ {[%clk 0:01:16]} 24. Kf1 {[%clk 0:01:31]}  Nh3+ {[%clk 0:01:12]} 25. Nf3 {[%clk 0:01:31]}  Qg1# {[%clk 0:01:10]} 0-1


[Site "https://www.chess.com"]

[Event "Titled Tuesday Blitz January 25 2022"]
[White "Bortnyk, Olexandr"]
[Black "Deac, Bogdan-Daniel"]
[WhiteFideId "14120828"]
[BlackFideId "1226380"]
[WhiteElo "2723"]
[BlackElo "2646"]
[Result "0-1"]
[Round "09"]
[TimeControl "180+1"]
[Date "2022.01.26"]
[WhiteClock "0:00:02"]
[BlackClock "0:00:06"]

1. e4 {[%clk 0:03:00]}  e5 {[%clk 0:03:00]} 2. Bc4 {[%clk 0:03:00]}  Nf6 {[%clk 0:03:00]} 3. d3 {[%clk 0:02:59]}  Nc6 {[%clk 0:02:59]} 4. Nc3 {[%clk 0:02:59]}  Bb4 {[%clk 0:02:59]} 5. Ne2 {[%clk 0:03:00]}  d5 {[%clk 0:02:56]} 6. exd5 {[%clk 0:03:01]}  Nxd5 {[%clk 0:02:56]} 7. Bd2 {[%clk 0:03:02]}  Be6 {[%clk 0:02:49]} 8. Bxd5 {[%clk 0:02:50]}  Bxd5 {[%clk 0:02:48]} 9. O-O {[%clk 0:02:51]}  O-O {[%clk 0:02:45]} 10. Nxd5 {[%clk 0:02:49]}  Qxd5 {[%clk 0:02:45]} 11. Bxb4 {[%clk 0:02:50]}  Nxb4 {[%clk 0:02:45]} 12. Nc3 {[%clk 0:02:50]}  Qd7 {[%clk 0:02:28]} 13. Re1 {[%clk 0:02:48]}  Rae8 {[%clk 0:02:24]} 14. Re4 {[%clk 0:02:06]}  Nc6 {[%clk 0:02:22]} 15. Qh5 {[%clk 0:02:06]}  f5 {[%clk 0:02:06]} 16. Rh4 {[%clk 0:02:05]}  g6 {[%clk 0:02:04]} 17. Qh6 {[%clk 0:02:05]}  Nd4 {[%clk 0:02:01]} 18. Rc1 {[%clk 0:01:24]}  c6 {[%clk 0:01:41]} 19. Rh3 {[%clk 0:01:10]}  f4 {[%clk 0:01:03]} 20. f3 {[%clk 0:01:02]}  Rf5 {[%clk 0:00:44]} 21. Kf1 {[%clk 0:00:57]}  Re7 {[%clk 0:00:26]} 22. Ne4 {[%clk 0:00:55]}  Qd5 {[%clk 0:00:18]} 23. Qh4 {[%clk 0:00:40]}  Qe6 {[%clk 0:00:12]} 24. c3 {[%clk 0:00:36]}  Nb5 {[%clk 0:00:08]} 25. Re1 {[%clk 0:00:36]}  h5 {[%clk 0:00:07]} 26. g4 {[%clk 0:00:29]}  fxg3 {[%clk 0:00:06]} 27. Rxg3 {[%clk 0:00:27]}  Nd6 {[%clk 0:00:07]} 28. Ke2 {[%clk 0:00:25]}  Nxe4 {[%clk 0:00:05]} 29. fxe4 {[%clk 0:00:26]}  Rf4 {[%clk 0:00:04]} 30. Qxh5 {[%clk 0:00:26]}  Rg7 {[%clk 0:00:03]} 31. Qg5 {[%clk 0:00:25]}  Qxa2 {[%clk 0:00:04]} 32. Qd8+ {[%clk 0:00:19]}  Rf8 {[%clk 0:00:03]} 33. Qg5 {[%clk 0:00:12]}  Qxb2+ {[%clk 0:00:04]} 34. Kd1 {[%clk 0:00:12]}  Qxc3 {[%clk 0:00:04]} 35. Qd2 {[%clk 0:00:03]}  Qa1+ {[%clk 0:00:03]} 36. Ke2 {[%clk 0:00:03]}  Qd4 {[%clk 0:00:04]} 37. Rg2 {[%clk 0:00:04]}  Rf4 {[%clk 0:00:04]} 38. Reg1 {[%clk 0:00:04]}  Kh7 {[%clk 0:00:04]} 39. Ke1 {[%clk 0:00:02]}  Rgf7 {[%clk 0:00:04]} 40. Rxg6 {[%clk 0:00:02]}  Qa1+ {[%clk 0:00:05]} 41. Qd1 {[%clk 0:00:02]}  Rf1+ {[%clk 0:00:05]} 42. Rxf1 {[%clk 0:00:01]}  Rxf1+ {[%clk 0:00:06]} 43. Kxf1 {[%clk 0:00:02]}  Qxd1+ {[%clk 0:00:06]} 0-1


[Site "https://www.chess.com"]